bitfinex-derivatives/quotes_ETHF0:USTF0_20240927
["timestamp","ask_amount","ask_price","bid_price","bid_amount"]
[1727411644289,0.77811,2650.7,2650.3,9.9306]
[1727411644485,0.4009,2650.7,2650.6,2.95]
[1727411644686,0.37724,2650.5,2650.4,2.95]
[1727411645192,0.37724,2650.5,2650.4,6.7228]
[1727411646386,0.37722,2650.6,2650.4,6.7228]
[1727411646590,0.4009,2650.7,2650.4,2.95]
[1727411646788,0.37721,2650.6,2650.5,0.3765]
[1727411648897,0.7781,2650.7,2650.5,0.3765]
[1727411649097,0.4009,2650.7,2650.5,0.3765]
[1727411649287,0.37721,2650.6,2650.5,0.3765]
[1727411650599,0.4009,2650.7,2650.5,0.3765]
[1727411650803,0.7781,2650.7,2650.5,0.3765]
[1727411650992,0.37721,2650.6,2650.5,0.3765]
[1727411652194,0.4009,2650.7,2650.5,0.3765]
[1727411652793,0.7781,2650.7,2650.5,0.3765]
[1727411653499,0.37721,2650.6,2650.5,0.3765]
[1727411655800,0.7781,2650.7,2650.5,0.3765]
[1727411656004,0.37721,2650.6,2650.5,0.3765]
[1727411656510,0.37721,2650.6,2650.5,1.7365]
[1727411656809,0.77811,2650.7,2650.5,1.7365]
[1727411657004,0.37721,2650.6,2650.5,1.7365]
[1727411661107,0.4009,2650.7,2650.5,1.7365]
[1727411661408,0.37721,2650.6,2650.5,1.7365]
[1727411662208,0.94268,2651.6,2650.5,14.29081798]
[1727411662404,0.764,2651.3,2651.1,3.2078]
[1727411662608,0.764,2651.3,2651.2,0.7804]
[1727411662914,0.393,2651.3,2651.2,9.1804]
[1727411663910,0.393,2651.3,2651.2,10.5404]
[1727411664410,0.393,2651.3,2651.2,12.1204]
[1727411665901,0.77011,2651.3,2651.2,8.4]
[1727411666103,0.37719,2650.8,2650.5,2.88246957]
[1727411666305,0.37718,2650.9,2650.6,3.3345]
[1727411666503,0.37716,2651.0,2650.8,2.94]
[1727411666697,0.4075,2650.9,2650.8,2.94]
[1727411667303,0.4075,2650.9,2650.8,6.1478]
[1727411670504,0.78467,2650.9,2650.8,6.1478]
[1727411670915,0.77996,2651.0,2650.8,6.1478]
[1727411671910,0.4028,2651.0,2650.8,6.1478]
[1727411672106,0.3796,2651.3,2650.9,11.34]
[1727411672408,0.37713,2651.2,2650.9,11.7292]
[1727411672609,0.37713,2651.2,2651.0,0.3966]
[1727411673610,0.37715,2651.0,2650.9,8.4]
[1727411673812,3.772,2651.2,2650.8,3.2078]
[1727411674015,0.7824,2651.3,2650.8,3.2078]
[1727411675621,3.9902,2651.3,2650.6,6.1478]
[1727411675820,4.36731,2651.3,2651.2,2.94]
[1727411676021,3.5874,2651.3,2651.2,2.94]
[1727411676218,3.2078,2651.3,2651.2,2.94]
[1727411676917,0.37709,2651.5,2651.2,6.1478]
[1727411677317,0.797,2651.7,2651.2,6.1478]
[1727411677712,0.37707,2651.6,2651.2,6.1478]
[1727411677920,0.37708,2651.5,2651.2,6.1478]
[1727411678712,0.37708,2651.6,2651.2,6.1478]
[1727411679028,0.37707,2651.6,2651.2,6.1478]
[1727411679211,0.37709,2651.5,2651.2,6.1478]
[1727411680020,0.37711,2651.3,2651.2,3.2078]
[1727411680319,0.3771,2651.4,2651.2,3.2078]
[1727411680523,0.37711,2651.3,2651.2,3.2078]
[1727411682018,0.37714,2651.1,2651.0,0.768]
[1727411682222,3.9883,2651.2,2650.5,14.5478]
[1727411682417,0.37719,2650.8,2650.6,0.7935]
[1727411682616,0.37718,2650.9,2650.6,0.7935]
[1727411682922,0.37718,2650.9,2650.7,2.94]
[1727411683415,0.37718,2650.8,2650.7,2.94]
[1727411688325,0.3772,2650.7,2650.6,0.7935]
[1727411688514,0.7507,2650.7,2650.6,0.7935]
[1727411689823,0.7507,2650.7,2650.6,3.7335]
[1727411689824,0.3772,2650.7,2650.6,3.7335]
[1727411690027,0.37719,2650.8,2650.6,3.7335]
[1727411690222,0.37718,2650.9,2650.6,3.7335]
[1727411691222,0.37718,2650.8,2650.6,3.7335]
[1727411691426,0.37718,2650.9,2650.6,3.7335]
[1727411691629,0.75256,2651.0,2650.8,2.94]
[1727411691927,0.37717,2650.9,2650.8,2.94]
[1727411693326,0.37719,2650.8,2650.7,2.94]
[1727411693631,0.37718,2650.9,2650.7,2.94]
[1727411695323,0.37718,2650.8,2650.7,2.94]
[1727411695527,0.37718,2650.9,2650.7,2.94]
[1727411696326,0.37718,2650.8,2650.7,2.94]
[1727411696829,0.37718,2650.9,2650.7,2.94]
[1727411697918,0.75256,2651.0,2650.8,0.97487798]
[1727411698123,0.37717,2650.9,2650.8,0.97487798]
[1727411698535,0.75256,2651.0,2650.8,2.79274398]
[1727411698726,0.3754,2651.0,2650.8,0.97487798]
[1727411699030,3.88268,2651.6,2650.9,0.97487798]
[1727411699231,0.37713,2651.2,2651.1,6.1478]
[1727411699526,0.37712,2651.3,2651.1,2.94]
[1727411699726,0.37712,2651.3,2651.1,6.1478]
[1727411699930,0.37712,2651.3,2651.1,2.94]
[1727411700336,0.37712,2651.3,2651.2,1.36]
[1727411702347,2.10818,2651.6,2651.0,4.70367798]
[1727411702550,0.37713,2651.2,2651.1,3.2078]
[1727411702751,0.37713,2651.2,2651.0,4.70367798]
[1727411703348,1.72888,2651.6,2651.0,4.70367798]
[1727411703750,0.37712,2651.3,2651.0,4.70367798]
[1727411704243,0.37712,2651.3,2651.1,0.97487798]
[1727411704445,0.37713,2651.2,2651.0,4.70367798]
[1727411704648,0.37713,2651.2,2651.1,0.97487798]
[1727411704850,0.37713,2651.2,2651.0,3.7288]
[1727411705056,0.94272,2651.5,2651.0,3.7288]
[1727411705251,0.37713,2651.2,2651.0,3.7288]
[1727411705552,0.94272,2651.5,2651.0,3.7288]
[1727411705553,0.37714,2651.1,2651.0,3.7288]
[1727411706052,0.37713,2651.2,2651.0,3.7288]
[1727411706351,0.94272,2651.5,2651.0,3.7288]
[1727411706352,0.37714,2651.1,2651.0,3.7288]
[1727411709462,0.94275,2651.4,2651.0,3.7288]
[1727411709754,0.37714,2651.1,2651.0,3.7288]
[1727411712047,0.37714,2651.1,2651.0,7.01500904]
[1727411713257,0.37714,2651.1,2651.0,4.07500904]
[1727411713747,0.37714,2651.1,2651.0,2.60741745]
[1727411713953,0.37714,2651.1,2651.0,4.07500904]
[1727411714153,0.37714,2651.1,2651.0,2.60741745]
[1727411714553,0.37714,2651.1,2651.0,4.07500904]
[1727411715647,4.14914,2651.1,2651.0,0.97857802]
[1727411715847,4.14914,2651.1,2650.9,0.97857802]
[1727411715848,0.37715,2651.0,2650.9,0.97857802]
[1727411716048,0.3698,2651.3,2650.9,1.81905961]
[1727411716254,0.37713,2651.2,2651.0,6.10994791]
[1727411716458,0.37713,2651.2,2651.1,1.38425305]
[1727411716849,0.37713,2651.2,2651.1,0.97865305]
[1727411717055,0.37715,2651.0,2650.9,0.97865305]
[1727411717462,0.406,2651.3,2650.9,3.28667303]
[1727411717760,0.37715,2651.1,2651.0,4.32428186]
[1727411718666,0.37715,2651.1,2650.9,1.46759159]
[1727411718667,0.37715,2651.0,2650.9,0.97868186]
[1727411718960,0.37715,2651.0,2650.9,2.79794666]
[1727411719261,4.14915,2651.0,2650.9,0.97868186]
[1727411719960,0.37717,2650.9,2650.8,3.2078]
[1727411720165,1.15837,2650.9,2650.8,3.2078]
[1727411720660,1.15837,2650.9,2650.7,0.97868186]
[1727411720661,0.37718,2650.8,2650.7,0.97868186]
[1727411720862,6.9806,2650.8,2650.5,8.4]
[1727411721057,5.0891,2650.7,2650.2,1.77528186]
[1727411721255,0.3733,2650.7,2650.2,3.7366]
[1727411721450,0.37723,2650.5,2650.2,16.32308186]
[1727411722566,0.37724,2650.4,2650.2,13.11528186]
[1727411722866,0.37723,2650.5,2650.2,13.11528186]
[1727411723264,0.37724,2650.4,2650.2,13.11528186]
[1727411724163,0.37723,2650.5,2650.2,13.11528186]
[1727411724466,0.3804,2650.9,2650.4,1.36]
[1727411724664,0.37717,2650.9,2650.8,1.36]
[1727411724967,0.37716,2651.0,2650.8,1.36]
[1727411725168,0.37716,2651.0,2650.9,0.393]
[1727411726369,0.37714,2651.1,2650.9,0.7726]
[1727411727066,0.37715,2651.0,2650.9,0.7726]
[1727411727558,0.37714,2651.1,2650.9,0.7726]
[1727411727872,0.37714,2651.1,2651.0,1.36]
[1727411728062,0.37714,2651.1,2651.0,2.33868186]
[1727411728565,0.37713,2651.3,2651.0,4.65168841]
[1727411728763,0.37713,2651.3,2651.1,6.41246186]
[1727411728964,0.37713,2651.3,2651.1,4.58856252]
[1727411730872,0.37713,2651.3,2651.2,0.97786252]
[1727411731072,0.37713,2651.3,2651.1,4.58856252]
[1727411731771,0.37713,2651.2,2651.1,4.58856252]
[1727411732074,0.37713,2651.2,2651.1,3.2078]
[1727411732465,0.77883,2651.2,2651.1,3.2078]
[1727411732869,0.37714,2651.1,2651.0,0.97786252]
[1727411733070,0.37714,2651.1,2650.9,0.393]
[1727411733071,0.37715,2651.0,2650.9,0.97786252]
[1727411733261,0.37717,2650.9,2650.8,0.97786252]
[1727411733469,1.36,2650.8,2650.6,0.97786252]
[1727411733670,0.7532,2650.7,2650.6,0.97786252]
[1727411733869,7.7338,2650.7,2650.6,0.97786252]
[1727411734281,8.6768,2650.7,2650.6,0.97786252]
[1727411734466,7.7338,2650.7,2650.3,0.97786252]
[1727411734769,0.37724,2650.4,2650.3,0.97786252]
[1727411735371,4.15004,2650.4,2650.3,0.97786252]
[1727411735573,10.15004,2650.4,2650.3,0.97786252]
[1727411735877,4.15004,2650.4,2650.3,0.97786252]
[1727411736066,0.37724,2650.4,2650.3,0.97786252]
[1727411736470,0.37724,2650.4,2650.3,1.37266252]
[1727411737070,0.37723,2650.5,2650.3,4.32266252]
[1727411737281,0.37722,2650.6,2650.5,2.95]
[1727411737671,0.37724,2650.4,2650.3,4.32266252]
[1727411738477,0.37723,2650.5,2650.3,4.32266252]
[1727411739078,0.37724,2650.4,2650.3,4.32266252]
[1727411739479,0.37723,2650.5,2650.3,4.32266252]
[1727411740574,0.37724,2650.4,2650.3,3.3448]
[1727411740879,0.37723,2650.5,2650.3,3.3448]
[1727411741681,0.37723,2650.5,2650.4,8.4]
[1727411741884,0.3882,2650.9,2650.4,11.35]
[1727411742073,0.37718,2650.8,2650.5,0.3953]
[1727411742383,0.37718,2650.8,2650.6,0.374]
[1727411742577,1.72793,2651.2,2650.6,0.374]
[1727411742788,0.376,2651.2,2650.9,2.95]
[1727411743082,0.37714,2651.1,2651.0,0.3797]
[1727411743675,0.376,2651.2,2651.0,0.3797]
[1727411743975,0.37714,2651.1,2651.0,0.3797]
[1727411747783,0.37715,2651.0,2650.9,2.95]
[1727411747986,0.37717,2650.9,2650.8,3.2078]
[1727411748282,0.7773,2651.2,2650.8,3.2078]
[1727411748684,0.37716,2651.0,2650.8,3.2078]
[1727411749180,0.37717,2650.9,2650.8,6.1578]
[1727411749390,0.37716,2651.0,2650.8,6.1578]
[1727411749985,0.37716,2651.0,2650.8,7.13566252]
[1727411750389,0.37716,2651.0,2650.9,0.97786252]
[1727411750590,0.37716,2651.0,2650.8,7.13566252]
[1727411751090,0.37716,2651.0,2650.9,0.97786252]
[1727411751289,3.2078,2651.3,2650.9,0.97786252]
[1727411751588,0.37712,2651.3,2651.1,3.2078]
[1727411751783,0.37712,2651.3,2651.2,0.4105]
[1727411758394,0.37712,2651.3,2651.2,1.7705]
[1727411761789,0.37713,2651.2,2651.1,3.589]
[1727411762100,0.37713,2651.2,2651.1,3.2078]
[1727411763192,1.31995,2651.2,2651.1,3.2078]
[1727411763898,5.09195,2651.2,2651.1,3.2078]
[1727411764196,0.37717,2650.9,2650.8,1.36]
[1727411768292,3.772,2650.9,2650.6,0.3832]
[1727411768494,0.7863,2651.0,2650.7,1.36]
[1727411768691,0.37718,2650.8,2650.7,1.36]
[1727411776500,0.3772,2650.7,2650.6,0.7622]
[1727411776695,0.7669,2650.7,2650.6,2.1222]
[1727411777701,0.3772,2650.7,2650.6,2.1222]
[1727411778006,0.37719,2650.8,2650.6,2.1222]
[1727411778204,0.37719,2650.8,2650.7,1.36]
[1727411778699,0.37716,2651.0,2650.7,2.33804842]
[1727411778904,0.37716,2651.0,2650.8,1.7459]
[1727411779103,0.37715,2651.1,2650.8,2.72394842]
[1727411779497,0.7949,2651.2,2650.8,2.72394842]
[1727411779498,0.37716,2651.0,2650.8,2.72394842]
[1727411779701,0.7949,2651.2,2650.8,2.72394842]
[1727411779901,0.37712,2651.3,2651.1,1.36]
[1727411780201,0.37712,2651.3,2651.2,0.7635]
[1727411783213,0.37711,2651.4,2651.2,0.7635]
[1727411784214,0.37711,2651.4,2651.3,0.3785]
[1727411787010,0.37711,2651.4,2651.2,0.7635]
[1727411787011,0.37711,2651.3,2651.2,0.7635]
[1727411789318,0.37711,2651.4,2651.2,0.7635]
[1727411789614,0.37711,2651.4,2651.3,1.7594]
[1727411792505,0.37711,2651.4,2651.3,0.3994]
[1727411793207,0.37711,2651.3,2651.2,0.7635]
[1727411802429,0.3828,2651.7,2651.2,0.7635]
[1727411802629,0.3828,2651.7,2651.3,1.36]
[1727411802630,0.37709,2651.5,2651.3,1.36]
[1727411802934,0.37709,2651.5,2651.4,0.4018]
[1727411803128,0.37711,2651.3,2651.2,0.7635]
[1727411804835,0.37713,2651.2,2651.1,0.97777777]
[1727411805033,0.37717,2650.9,2650.8,0.7689]
[1727411805233,0.37718,2650.8,2650.7,4.18557777]
[1727411805534,0.74968,2650.8,2650.7,3.2078]
[1727411806431,2.10968,2650.8,2650.7,3.2078]
[1727411806726,2.10968,2650.8,2650.3,0.97777777]
[1727411806727,0.37724,2650.4,2650.3,0.97777777]
[1727411807326,0.37728,2650.1,2650.0,0.97777777]
[1727411807524,0.3773,2650.0,2649.9,0.7764]
[1727411807732,0.37733,2649.8,2649.6,5.54557777]
[1727411808136,0.37733,2649.8,2649.6,4.18557777]
[1727411808337,0.37733,2649.8,2649.6,4.5678]
[1727411808534,2.12991,2649.9,2649.6,4.5678]
[1727411808729,0.76991,2649.9,2649.6,4.5678]
[1727411810033,0.37733,2649.8,2649.6,4.5678]
[1727411810235,0.37738,2649.4,2649.3,3.2078]
[1727411810534,3.2078,2649.6,2649.1,0.3726]
[1727411811037,0.37741,2649.3,2649.1,0.3726]
[1727411813333,3.2078,2649.6,2649.1,0.3726]
[1727411813334,0.37741,2649.2,2649.1,0.3726]
[1727411817731,0.3774,2649.3,2649.1,0.3726]
[1727411817938,0.77389,2649.4,2649.1,3.3226]
[1727411818138,0.77389,2649.4,2649.1,3.7275]
[1727411818540,0.77389,2649.4,2649.2,8.4]
[1727411819239,0.37739,2649.4,2649.2,8.4]
[1727411819441,0.3774,2649.3,2649.2,8.4]
[1727411819743,3.2078,2649.6,2649.2,8.4]
[1727411819744,0.37739,2649.4,2649.2,8.4]
[1727411820441,0.37737,2649.5,2649.2,8.4]
[1727411820642,3.58516,2649.6,2649.2,8.4]
[1727411821341,1.14614,2649.7,2649.3,2.95]
[1727411821536,0.75294,2649.7,2649.3,2.95]
[1727411821743,0.3756,2649.7,2649.3,2.95]
[1727411822045,0.37733,2649.8,2649.3,2.95]
[1727411822344,0.37731,2649.9,2649.5,2.95]
[1727411822640,0.37731,2649.9,2649.6,0.8015]
[1727411822939,0.37731,2649.9,2649.7,0.385]
[1727411823442,0.3773,2650.0,2649.7,0.385]
[1727411823640,3.58509,2650.1,2649.7,0.385]
[1727411824045,0.37731,2649.9,2649.8,8.4]
[1727411825539,0.3773,2650.0,2649.8,8.4]
[1727411825744,0.3773,2650.0,2649.7,0.385]
[1727411826043,0.37733,2649.8,2649.7,0.385]
[1727411826245,0.37733,2649.8,2649.7,8.785]
[1727411828139,0.37733,2649.8,2649.7,0.385]
[1727411828341,0.37737,2649.5,2649.2,3.2078]
[1727411828546,6.1578,2649.8,2649.3,0.8066]
[1727411828846,0.37738,2649.4,2649.3,0.4083]
[1727411829149,0.37738,2649.4,2648.9,3.2078]
[1727411829150,0.37743,2649.1,2649.0,0.3983]
[1727411830246,0.37742,2649.2,2649.0,0.3983]
[1727411830447,0.3901,2649.3,2649.0,0.3983]
[1727411830647,0.37742,2649.2,2649.0,0.3983]
[1727411831943,0.3774,2649.3,2649.0,0.3983]
[1727411832146,3.2078,2649.5,2649.0,0.3983]
[1727411832341,0.37742,2649.2,2649.0,0.3983]
[1727411832646,2.95,2649.4,2649.0,0.3983]
[1727411832840,0.3767,2649.3,2649.0,0.3983]
[1727411833443,0.37743,2649.1,2649.0,0.3983]
[1727411834144,0.37742,2649.2,2649.0,0.3983]
[1727411835846,0.37743,2649.1,2649.0,0.3983]
[1727411836450,0.3767,2649.3,2648.9,12.0161]
[1727411836451,0.37744,2649.0,2648.9,3.6161]
[1727411836649,0.37747,2648.8,2648.7,0.407]
[1727411836846,0.37747,2648.8,2648.7,0.799]
[1727411837041,6.9514,2649.2,2648.7,0.799]
[1727411837354,0.37747,2648.8,2648.7,0.799]
[1727411837952,0.37746,2648.9,2648.7,0.799]
[1727411838145,0.37745,2648.9,2648.7,0.799]
[1727411838552,0.37744,2649.0,2648.7,0.799]
[1727411838752,0.37743,2649.1,2648.7,0.799]
[1727411838953,3.58522,2649.2,2648.7,3.749]
[1727411839452,3.2078,2649.2,2648.7,3.749]
[1727411840046,0.7541,2649.3,2648.8,3.2078]
[1727411840951,0.37739,2649.4,2648.8,6.1578]
[1727411841346,3.2078,2649.5,2648.8,6.1578]
[1727411841549,0.37744,2649.0,2648.7,0.799]
[1727411841755,2.95,2649.2,2648.7,0.799]
[1727411841756,0.37745,2648.9,2648.7,0.799]
[1727411841954,0.37745,2649.0,2648.7,0.799]
[1727411842345,0.7488,2649.1,2648.7,0.799]
[1727411842546,0.37745,2648.9,2648.8,8.4]
[1727411844555,0.37745,2649.0,2648.8,8.4]
[1727411845954,0.7488,2649.1,2648.8,8.4]
[1727411846154,0.37745,2648.9,2648.8,8.4]
[1727411847359,0.37745,2648.9,2648.7,0.392]
[1727411848362,0.37745,2649.0,2648.7,0.392]
[1727411848553,0.7488,2649.1,2648.7,0.392]
[1727411848861,0.37746,2648.9,2648.7,0.392]
[1727411850962,0.37747,2648.8,2648.7,0.392]
[1727411852954,0.37748,2648.7,2648.6,9.75697777]
[1727411853264,0.76558,2648.7,2648.6,0.3792]
[1727411855362,0.76558,2648.7,2648.6,1.35697777]
[1727411855565,0.37748,2648.7,2648.6,0.3792]
[1727411855752,0.37748,2648.8,2648.6,0.3792]
[1727411856057,0.37746,2648.9,2648.6,0.3792]
[1727411859161,0.37746,2648.9,2648.7,8.4]
[1727411860170,0.37744,2649.0,2648.7,8.4]
[1727411860468,0.37746,2648.9,2648.7,8.4]
[1727411862356,0.37747,2648.8,2648.7,8.4]
[1727411862965,0.37746,2648.9,2648.7,8.4]
[1727411863269,0.37747,2648.8,2648.7,8.4]
[1727411863763,0.37746,2648.9,2648.7,8.4]
[1727411863973,0.37747,2648.8,2648.7,8.4]
[1727411864361,0.37748,2648.7,2648.6,0.3792]
[1727411864664,0.78818,2648.7,2648.6,0.3792]
[1727411868766,0.4107,2648.7,2648.5,8.4]
[1727411868967,8.7323,2648.6,2648.0,1.81866666]
[1727411869171,0.3776,2647.9,2647.8,0.352]
[1727411869369,1.36,2647.9,2647.5,0.3715]
[1727411869671,3.2078,2648.0,2647.5,0.3715]
[1727411869672,1.73764,2647.6,2647.5,0.3715]
[1727411870479,3.32764,2647.6,2647.5,0.3715]
[1727411871272,0.37769,2647.3,2647.1,0.3787]
[1727411871571,0.37772,2647.0,2646.9,3.2078]
[1727411871768,2.95,2647.2,2646.9,3.2078]
[1727411871978,3.32771,2647.2,2646.9,3.2078]
[1727411872168,0.37772,2647.1,2646.9,3.2078]
[1727411872770,3.3277,2647.2,2646.9,3.2078]
[1727411873077,3.32768,2647.3,2646.9,3.2078]
[1727411875479,0.3777,2647.2,2647.0,0.4093]
[1727411875880,3.32768,2647.3,2647.0,0.4093]
[1727411877274,3.32772,2647.1,2646.9,3.2078]
[1727411877581,2.95,2647.1,2646.9,3.2078]
[1727411877769,3.32771,2647.1,2646.9,3.2078]
[1727411878274,2.95,2647.1,2646.9,3.2078]
[1727411878782,3.32769,2647.3,2646.9,3.2078]
[1727411879079,0.37772,2647.1,2646.8,0.393]
[1727411879275,2.95,2647.3,2646.8,0.393]
[1727411879276,0.3777,2647.2,2646.8,0.393]
[1727411880683,3.32769,2647.3,2647.0,3.2078]
[1727411880875,0.3777,2647.2,2647.0,3.2078]
[1727411881588,0.37771,2647.1,2647.0,3.2078]
[1727411881778,0.37774,2646.9,2646.8,0.393]
[1727411886183,0.3778,2646.5,2646.0,0.44]
[1727411886387,0.3778,2646.5,2646.2,0.3939]
[1727411886388,2.95,2646.4,2646.2,0.3939]
[1727411886983,6.53559,2646.6,2646.2,0.3939]
[1727411887289,3.32779,2646.6,2646.2,0.3939]
[1727411888191,3.32779,2646.6,2646.3,0.3706]
[1727411888487,0.3778,2646.5,2646.2,0.3939]
[1727411888694,2.95,2646.6,2646.2,0.3939]
[1727411888894,0.3733,2646.7,2646.2,0.3939]
[1727411889097,0.75107,2646.7,2646.2,0.3939]
[1727411889987,6.1578,2646.8,2646.2,0.3939]
[1727411890785,4.078,2647.0,2646.4,3.2078]
[1727411890994,0.37775,2646.9,2646.6,3.2078]
[1727411891193,0.37775,2646.9,2646.7,0.775]
[1727411891792,0.8046,2647.1,2646.7,0.775]
[1727411891793,0.37774,2647.0,2646.7,0.775]
[1727411891994,0.37774,2646.9,2646.7,0.775]
[1727411892289,0.37775,2646.8,2646.7,0.3912]
[1727411893289,0.37778,2646.6,2646.5,0.4033]
[1727411893488,0.3778,2646.5,2646.4,0.3869]
[1727411893989,0.3778,2646.5,2646.4,7.9869]
[1727411895188,4.07249,2646.6,2646.4,7.9869]
[1727411895788,0.37777,2646.7,2646.4,7.9869]
[1727411896189,2.95,2647.0,2646.4,7.9869]
[1727411896389,0.37776,2646.8,2646.6,3.2078]
[1727411896615,0.37776,2646.8,2646.7,0.8064]
[1727411897695,3.32775,2646.9,2646.7,0.8064]
[1727411899007,0.37775,2646.8,2646.7,0.8064]
[1727411899601,0.37778,2646.7,2646.4,7.9869]
[1727411899795,0.37778,2646.6,2646.4,7.9869]
[1727411899989,1.14467,2646.7,2646.4,7.9869]
[1727411900293,0.7669,2646.7,2646.4,7.9869]
[1727411900497,0.37778,2646.6,2646.4,0.3869]
[1727411901002,0.37778,2646.6,2646.4,7.9869]
[1727411901499,0.3778,2646.5,2646.2,3.2078]
[1727411902103,0.3778,2646.5,2646.3,7.6]
[1727411902495,1.14467,2646.7,2646.3,7.6]
[1727411902992,1.14467,2646.7,2646.4,0.8143]
[1727411903997,2.95,2646.8,2646.4,0.8143]
[1727411904203,0.37774,2646.9,2646.4,0.8143]
[1727411904399,4.09223,2647.0,2646.5,3.2078]
[1727411904707,4.09223,2647.0,2646.6,0.3931]
[1727411907605,4.09223,2647.0,2646.7,7.6]
[1727411908507,0.37774,2646.9,2646.7,7.6]
[1727411909199,3.7145,2647.0,2646.7,7.6]
[1727411909798,3.32,2647.0,2646.8,3.2078]
[1727411909993,2.95,2647.0,2646.8,3.2078]
[1727411910193,0.3767,2647.2,2646.8,3.2078]
[1727411910194,3.3267,2647.2,2646.9,0.3742]
[1727411910396,0.37772,2647.1,2646.9,0.3742]
[1727411910793,3.7044,2647.2,2646.9,0.3742]
[1727411910996,2.95,2647.2,2646.9,0.7684]
[1727411911200,3.72539,2647.3,2646.9,0.7684]
[1727411913105,3.72539,2647.3,2647.0,7.6]
[1727411913305,3.72539,2647.3,2647.1,0.376]
[1727411913503,2.95,2647.3,2647.1,0.376]
[1727411914007,0.4079,2647.5,2647.1,3.5838]
[1727411914314,0.37767,2647.4,2647.1,3.5838]
[1727411914514,0.37767,2647.4,2647.2,1.84248949]
[1727411914701,0.37767,2647.4,2647.1,5.05046666]
[1727411915098,0.37765,2647.5,2647.2,3.30918574]
[1727411915411,0.37765,2647.5,2647.2,1.46666666]
[1727411915605,0.37767,2647.4,2647.3,1.84269284]
[1727411915808,0.37767,2647.4,2647.2,1.46666666]
[1727411916399,0.37768,2647.3,2647.2,1.46666666]
[1727411916708,0.37768,2647.3,2647.2,3.30965329]
[1727411917506,6.9526,2647.6,2647.2,3.30974108]
[1727411917711,6.9526,2647.6,2647.2,1.46666666]
[1727411917913,6.9526,2647.6,2647.1,5.05046666]
[1727411918107,0.37768,2647.4,2647.2,3.30962312]
[1727411918313,0.37768,2647.3,2647.2,1.46666666]
[1727411918508,0.37768,2647.3,2647.2,1.84295901]
[1727411920810,0.37767,2647.4,2647.2,1.84295901]
[1727411921011,0.3982,2647.6,2647.2,1.46666666]
[1727411921207,0.3982,2647.6,2647.3,5.44594714]
[1727411921208,0.37765,2647.5,2647.3,5.44594714]
[1727411921408,0.77585,2647.6,2647.4,0.3918]
[1727411921603,0.37765,2647.6,2647.4,0.3918]
[1727411921808,0.37766,2647.5,2647.3,0.3964]
[1727411922008,0.37767,2647.4,2647.3,3.2078]
[1727411922214,0.37767,2647.4,2647.3,5.0493538]
[1727411922415,0.37767,2647.4,2647.3,3.2078]
[1727411923511,3.32767,2647.4,2647.3,3.2078]
[1727411925418,7.10527,2647.4,2647.3,3.2078]
[1727411930915,7.50397,2647.4,2647.3,3.2078]
[1727411932719,4.55397,2647.4,2647.3,3.2078]
[1727411934520,5.91397,2647.4,2647.3,3.2078]
[1727411935017,2.13637,2647.4,2647.3,3.2078]
[1727411942316,2.13637,2647.4,2647.1,1.84266666]
[1727411942317,0.3777,2647.2,2647.1,1.46666666]
[1727411942513,0.37772,2647.0,2646.9,3.2078]
[1727411942716,1.73772,2647.0,2646.9,3.2078]
[1727411942919,1.36,2647.0,2646.9,3.2078]
[1727411943121,0.4071,2647.1,2646.9,3.2078]
[1727411943319,1.36,2647.4,2647.0,3.20332717]
[1727411943527,1.36,2647.6,2647.1,2.22777912]
[1727411943824,0.3894,2647.8,2647.4,3.2078]
[1727411944021,0.3894,2647.8,2647.5,0.3913]
[1727411944224,1.36,2647.7,2647.5,0.3913]
[1727411944422,1.36,2647.7,2647.6,0.397]
[1727411944916,1.36,2647.9,2647.6,2.24055692]
[1727411945224,1.36,2647.9,2647.6,0.397]
[1727411946225,1.36,2647.8,2647.6,0.397]
[1727411946424,1.7571,2647.8,2647.6,0.397]
[1727411946722,1.36,2647.8,2647.6,0.397]
[1727411948818,1.73761,2647.8,2647.6,0.397]
[1727411949024,1.36,2647.9,2647.6,0.397]
[1727411949718,1.7376,2647.9,2647.6,0.397]
[1727411949923,1.36,2647.9,2647.6,0.397]
[1727411950226,1.73761,2647.8,2647.6,0.397]
[1727411950520,0.3706,2647.7,2647.6,0.397]
[1727411950727,0.7549,2647.7,2647.6,0.397]
[1727411951425,1.13252,2647.7,2647.6,0.397]
[1727411954326,1.13252,2647.7,2647.6,2.24265688]
[1727411955233,1.13252,2647.7,2647.6,0.397]
[1727411955623,1.13252,2647.7,2647.6,2.24315801]
[1727411955829,1.13252,2647.7,2647.6,0.397]
[1727411956432,1.13252,2647.7,2647.6,2.24272231]
[1727411956648,1.13252,2647.7,2647.6,0.397]
[1727411957822,1.13252,2647.7,2647.5,1.85796666]
[1727411958136,1.36,2647.6,2647.5,1.85796666]
[1727411958430,1.36,2647.6,2647.5,3.70287361]
[1727411959132,1.73764,2647.6,2647.5,3.31157361]
[1727411959330,1.36,2647.6,2647.4,0.7656]
[1727411959527,1.36,2647.6,2647.4,2.23226666]
[1727411960036,1.36,2647.6,2647.4,0.7656]
[1727411960330,5.1368,2647.6,2647.4,0.7656]
[1727411960534,0.37765,2647.5,2647.4,0.7656]
[1727411961032,3.7776,2647.5,2647.4,0.7656]